[Event "Titled Tuesday Blitz July 11 Early 2023"]
[White "Grandelius, Nils"]
[Black "Ezat, Mohamed"]
[WhiteFideId "1710400"]
[BlackFideId "10600906"]
[WhiteElo "2864"]
[BlackElo "2622"]
[Result "1-0"]
[Round "5"]
[TimeControl "180+2"]
[Date "2023.07.11"]
[WhiteClock "0:01:42"]
[BlackClock "0:00:26"]
[Board "28"]

1. d4 {[%clk 0:03:00]}  Nf6 {[%clk 0:02:59]} 2. Nf3 {[%clk 0:03:01]}  g6 {[%clk 0:02:58]} 3. Bg5 {[%clk 0:03:00]}  Bg7 {[%clk 0:02:58]} 4. Nbd2 {[%clk 0:02:59]}  d5 {[%clk 0:02:57]} 5. e3 {[%clk 0:02:57]}  O-O {[%clk 0:02:56]} 6. c3 {[%clk 0:02:58]}  Bg4 {[%clk 0:02:54]} 7. Be2 {[%clk 0:02:50]}  c5 {[%clk 0:02:48]} 8. O-O {[%clk 0:02:46]}  cxd4 {[%clk 0:02:44]} 9. exd4 {[%clk 0:02:47]}  Nc6 {[%clk 0:02:43]} 10. h3 {[%clk 0:02:46]}  Bxf3 {[%clk 0:02:42]} 11. Nxf3 {[%clk 0:02:47]}  Ne4 {[%clk 0:02:42]} 12. Be3 {[%clk 0:02:47]}  e5 {[%clk 0:02:36]} 13. dxe5 {[%clk 0:02:44]}  Nxe5 {[%clk 0:02:36]} 14. Nxe5 {[%clk 0:02:41]}  Bxe5 {[%clk 0:02:36]} 15. Qb3 {[%clk 0:02:42]}  Nf6 {[%clk 0:01:57]} 16. Rad1 {[%clk 0:02:39]}  Qe7 {[%clk 0:01:56]} 17. Bf3 {[%clk 0:02:38]}  a5 {[%clk 0:01:50]} 18. a4 {[%clk 0:02:37]}  Bd6 {[%clk 0:01:43]} 19. Bxd5 {[%clk 0:02:25]}  Qe5 {[%clk 0:01:42]} 20. g3 {[%clk 0:02:26]}  Qe7 {[%clk 0:01:38]} 21. Qxb7 {[%clk 0:02:14]}  Bc7 {[%clk 0:01:16]} 22. Bb6 {[%clk 0:01:52]}  Rac8 {[%clk 0:01:15]} 23. Rfe1 {[%clk 0:01:48]}  Qd7 {[%clk 0:00:26]} 24. Bg2 {[%clk 0:01:42]} 1-0


[Site "https://www.chess.com"]

[Event "Titled Tuesday Blitz July 11 Early 2023"]
[White "HamedWafa4"]
[Black "Timofeev, Artyom"]
[BlackFideId "4140419"]
[WhiteElo "2618"]
[BlackElo "2841"]
[Result "1/2-1/2"]
[Round "5"]
[TimeControl "180+2"]
[Date "2023.07.11"]
[WhiteClock "0:00:52"]
[BlackClock "0:00:46"]
[Board "30"]

1. e4 {[%clk 0:03:00]}  d6 {[%clk 0:02:59]} 2. d4 {[%clk 0:02:59]}  Nf6 {[%clk 0:02:59]} 3. Nc3 {[%clk 0:02:58]}  g6 {[%clk 0:02:59]} 4. Be3 {[%clk 0:02:51]}  c6 {[%clk 0:02:58]} 5. Qd2 {[%clk 0:02:47]}  b5 {[%clk 0:02:58]} 6. f3 {[%clk 0:02:45]}  b4 {[%clk 0:02:57]} 7. Nce2 {[%clk 0:02:45]}  a5 {[%clk 0:02:57]} 8. O-O-O {[%clk 0:02:43]}  Be6 {[%clk 0:02:53]} 9. Kb1 {[%clk 0:02:41]}  Nbd7 {[%clk 0:02:43]} 10. Nf4 {[%clk 0:02:39]}  Nb6 {[%clk 0:02:43]} 11. Nxe6 {[%clk 0:02:39]}  fxe6 {[%clk 0:02:43]} 12. g4 {[%clk 0:02:38]}  Qc7 {[%clk 0:02:37]} 13. h4 {[%clk 0:02:36]}  e5 {[%clk 0:02:27]} 14. dxe5 {[%clk 0:02:33]}  dxe5 {[%clk 0:02:27]} 15. g5 {[%clk 0:02:29]}  Nfd7 {[%clk 0:02:27]} 16. Bh3 {[%clk 0:02:26]}  Bg7 {[%clk 0:02:23]} 17. h5 {[%clk 0:02:23]}  gxh5 {[%clk 0:02:21]} 18. Bf5 {[%clk 0:02:21]}  Rd8 {[%clk 0:02:14]} 19. Ne2 {[%clk 0:02:14]}  Nc4 {[%clk 0:02:10]} 20. Qc1 {[%clk 0:02:11]}  Nf8 {[%clk 0:01:45]} 21. Rxd8+ {[%clk 0:02:07]}  Qxd8 {[%clk 0:01:45]} 22. Rd1 {[%clk 0:01:58]}  Qc7 {[%clk 0:01:42]} 23. Bc5 {[%clk 0:01:55]}  Nd6 {[%clk 0:01:35]} 24. Ng3 {[%clk 0:01:52]}  Ng6 {[%clk 0:01:33]} 25. Nxh5 {[%clk 0:01:47]}  O-O {[%clk 0:01:32]} 26. Nxg7 {[%clk 0:01:43]}  Kxg7 {[%clk 0:01:32]} 27. Bxg6 {[%clk 0:01:28]}  hxg6 {[%clk 0:01:32]} 28. Bxd6 {[%clk 0:01:26]}  exd6 {[%clk 0:01:31]} 29. Qe3 {[%clk 0:01:26]}  c5 {[%clk 0:01:25]} 30. b3 {[%clk 0:01:24]}  Qe7 {[%clk 0:01:22]} 31. Qd3 {[%clk 0:01:18]}  Rd8 {[%clk 0:01:13]} 32. Qb5 {[%clk 0:01:11]}  Qxg5 {[%clk 0:01:06]} 33. Qxa5 {[%clk 0:01:11]}  Qe7 {[%clk 0:01:05]} 34. a4 {[%clk 0:01:06]}  bxa3 {[%clk 0:01:04]} 35. Qxa3 {[%clk 0:01:07]}  Rf8 {[%clk 0:01:04]} 36. Rd3 {[%clk 0:01:05]}  g5 {[%clk 0:01:02]} 37. Qa6 {[%clk 0:01:04]}  Rf6 {[%clk 0:01:02]} 38. Kb2 {[%clk 0:01:01]}  Qc7 {[%clk 0:00:55]} 39. Qa8 {[%clk 0:00:53]}  Qe7 {[%clk 0:00:46]} 40. Qc6 {[%clk 0:00:52]} 1/2-1/2


[Site "https://www.chess.com"]

[Event "Titled Tuesday Blitz July 11 Early 2023"]
[White "Nefedov, Sergey"]
[Black "Beerdsen, Thomas"]
[WhiteFideId "24113417"]
[BlackFideId "1030108"]
[WhiteElo "2611"]
[BlackElo "2832"]
[Result "1-0"]
[Round "5"]
[TimeControl "180+2"]
[Date "2023.07.11"]
[WhiteClock "0:00:11"]
[BlackClock "0:00:31"]
[Board "31"]

1. d4 {[%clk 0:03:00]}  Nf6 {[%clk 0:02:58]} 2. Nf3 {[%clk 0:03:00]}  b5 {[%clk 0:02:58]} 3. Bg5 {[%clk 0:02:58]}  Bb7 {[%clk 0:02:57]} 4. Bxf6 {[%clk 0:02:57]}  gxf6 {[%clk 0:02:57]} 5. Nbd2 {[%clk 0:02:56]}  e6 {[%clk 0:02:56]} 6. e4 {[%clk 0:02:55]}  b4 {[%clk 0:02:56]} 7. Bd3 {[%clk 0:02:54]}  c5 {[%clk 0:02:56]} 8. d5 {[%clk 0:02:50]}  Rg8 {[%clk 0:02:54]} 9. O-O {[%clk 0:02:49]}  Na6 {[%clk 0:02:40]} 10. Nc4 {[%clk 0:02:41]}  Nc7 {[%clk 0:02:41]} 11. Re1 {[%clk 0:02:26]}  d6 {[%clk 0:02:33]} 12. a3 {[%clk 0:02:15]}  a5 {[%clk 0:02:28]} 13. Qd2 {[%clk 0:02:02]}  Be7 {[%clk 0:02:23]} 14. Qh6 {[%clk 0:01:59]}  Bf8 {[%clk 0:01:59]} 15. Qxh7 {[%clk 0:01:56]}  Rg7 {[%clk 0:02:00]} 16. Qh5 {[%clk 0:01:54]}  e5 {[%clk 0:01:58]} 17. Nh4 {[%clk 0:01:50]}  Rg5 {[%clk 0:01:54]} 18. Qf3 {[%clk 0:01:50]}  Nb5 {[%clk 0:01:51]} 19. Nf5 {[%clk 0:01:38]}  b3 {[%clk 0:01:33]} 20. Nxe5 {[%clk 0:01:33]}  Qb6 {[%clk 0:01:23]} 21. Ng4 {[%clk 0:01:07]}  O-O-O {[%clk 0:01:17]} 22. c4 {[%clk 0:01:04]}  Nc7 {[%clk 0:01:14]} 23. h4 {[%clk 0:01:02]}  Rg8 {[%clk 0:01:12]} 24. Nxf6 {[%clk 0:01:00]}  Rg6 {[%clk 0:01:12]} 25. Ng4 {[%clk 0:00:46]}  Kb8 {[%clk 0:01:13]} 26. h5 {[%clk 0:00:46]}  Rg5 {[%clk 0:01:14]} 27. h6 {[%clk 0:00:45]}  Bc8 {[%clk 0:01:14]} 28. Nge3 {[%clk 0:00:40]}  Rg8 {[%clk 0:01:09]} 29. g3 {[%clk 0:00:39]}  Rh8 {[%clk 0:01:09]} 30. Qf4 {[%clk 0:00:38]}  Ne8 {[%clk 0:01:09]} 31. Kg2 {[%clk 0:00:36]}  Nf6 {[%clk 0:01:10]} 32. Rh1 {[%clk 0:00:35]}  Qc7 {[%clk 0:01:09]} 33. Qg5 {[%clk 0:00:24]}  Nd7 {[%clk 0:01:09]} 34. f4 {[%clk 0:00:22]}  Re8 {[%clk 0:01:08]} 35. Rae1 {[%clk 0:00:19]}  Nb6 {[%clk 0:01:08]} 36. Ng4 {[%clk 0:00:17]}  Na4 {[%clk 0:01:09]} 37. Re2 {[%clk 0:00:17]}  Ka7 {[%clk 0:01:09]} 38. Nf6 {[%clk 0:00:16]}  Rd8 {[%clk 0:01:09]} 39. h7 {[%clk 0:00:15]}  Be7 {[%clk 0:01:06]} 40. Nxe7 {[%clk 0:00:14]}  Qxe7 {[%clk 0:01:07]} 41. e5 {[%clk 0:00:14]}  dxe5 {[%clk 0:01:08]} 42. Qxe5 {[%clk 0:00:12]}  Qb7 {[%clk 0:01:03]} 43. Qe7 {[%clk 0:00:10]}  Bd7 {[%clk 0:01:04]} 44. Nxd7 {[%clk 0:00:09]}  Rxd7 {[%clk 0:01:05]} 45. Qf6 {[%clk 0:00:09]}  Qc8 {[%clk 0:00:50]} 46. Bf5 {[%clk 0:00:09]}  Nb6 {[%clk 0:00:36]} 47. Bxd7 {[%clk 0:00:08]}  Nxd7 {[%clk 0:00:37]} 48. Re7 {[%clk 0:00:08]}  Kb8 {[%clk 0:00:35]} 49. Qd6+ {[%clk 0:00:08]}  Ka8 {[%clk 0:00:34]} 50. Qxd7 {[%clk 0:00:09]}  Qxd7 {[%clk 0:00:35]} 51. Rxd7 {[%clk 0:00:09]}  a4 {[%clk 0:00:35]} 52. Rxf7 {[%clk 0:00:10]}  Kb8 {[%clk 0:00:36]} 53. Rg7 {[%clk 0:00:10]}  Kc8 {[%clk 0:00:33]} 54. Rg8+ {[%clk 0:00:10]}  Kd7 {[%clk 0:00:33]} 55. Rxh8 {[%clk 0:00:11]}  Ke7 {[%clk 0:00:34]} 56. Rg8 {[%clk 0:00:11]}  Kf6 {[%clk 0:00:33]} 57. h8=Q+ {[%clk 0:00:11]}  Kf5 {[%clk 0:00:31]} 58. Qe5# {[%clk 0:00:11]} 1-0


[Site "https://www.chess.com"]

[Event "Titled Tuesday Blitz July 11 Early 2023"]
[White "Borgaonkar Akshay"]
[Black "Zemlyanskii, Ivan"]
[WhiteFideId "25639110"]
[BlackFideId "24249971"]
[WhiteElo "2608"]
[BlackElo "2789"]
[Result "1/2-1/2"]
[Round "5"]
[TimeControl "180+2"]
[Date "2023.07.11"]
[WhiteClock "0:01:12"]
[BlackClock "0:00:11"]
[Board "33"]

1. e4 {[%clk 0:03:00]}  c5 {[%clk 0:02:59]} 2. Nf3 {[%clk 0:02:59]}  e6 {[%clk 0:02:58]} 3. d4 {[%clk 0:02:58]}  cxd4 {[%clk 0:02:59]} 4. Nxd4 {[%clk 0:02:59]}  Nf6 {[%clk 0:02:58]} 5. Nc3 {[%clk 0:02:54]}  Nc6 {[%clk 0:02:58]} 6. Ndb5 {[%clk 0:02:54]}  Bc5 {[%clk 0:02:56]} 7. Nd6+ {[%clk 0:02:50]}  Ke7 {[%clk 0:02:56]} 8. Bf4 {[%clk 0:02:50]}  e5 {[%clk 0:02:56]} 9. Nf5+ {[%clk 0:02:50]}  Kf8 {[%clk 0:02:57]} 10. Bg5 {[%clk 0:02:50]}  d6 {[%clk 0:02:55]} 11. Bd3 {[%clk 0:02:47]}  h6 {[%clk 0:02:46]} 12. Bxf6 {[%clk 0:02:46]}  Qxf6 {[%clk 0:02:47]} 13. Nd5 {[%clk 0:02:44]}  Qd8 {[%clk 0:02:48]} 14. O-O {[%clk 0:02:43]}  g6 {[%clk 0:02:47]} 15. Nfe3 {[%clk 0:02:41]}  Kg7 {[%clk 0:02:45]} 16. c3 {[%clk 0:02:41]}  Be6 {[%clk 0:02:45]} 17. b4 {[%clk 0:02:38]}  Bxe3 {[%clk 0:02:42]} 18. Nxe3 {[%clk 0:02:38]}  Ne7 {[%clk 0:02:40]} 19. Bc4 {[%clk 0:02:29]}  Qd7 {[%clk 0:02:20]} 20. Bd5 {[%clk 0:02:18]}  f5 {[%clk 0:02:01]} 21. f3 {[%clk 0:02:11]}  Nxd5 {[%clk 0:01:53]} 22. Nxd5 {[%clk 0:02:10]}  Rac8 {[%clk 0:01:53]} 23. Rc1 {[%clk 0:02:03]}  b5 {[%clk 0:01:45]} 24. Qd3 {[%clk 0:01:58]}  f4 {[%clk 0:01:38]} 25. Rfd1 {[%clk 0:01:57]}  Rc4 {[%clk 0:01:37]} 26. a4 {[%clk 0:01:56]}  Rhc8 {[%clk 0:01:24]} 27. axb5 {[%clk 0:01:55]}  Qxb5 {[%clk 0:01:25]} 28. Ra1 {[%clk 0:01:52]}  Qb7 {[%clk 0:01:14]} 29. Ra3 {[%clk 0:01:50]}  Bxd5 {[%clk 0:00:56]} 30. Qxd5 {[%clk 0:01:48]}  Qb6+ {[%clk 0:00:50]} 31. Kh1 {[%clk 0:01:44]}  Rxc3 {[%clk 0:00:50]} 32. Rxc3 {[%clk 0:01:26]}  Rxc3 {[%clk 0:00:51]} 33. h3 {[%clk 0:01:26]}  Qxb4 {[%clk 0:00:35]} 34. Qxd6 {[%clk 0:01:16]}  Qxd6 {[%clk 0:00:31]} 35. Rxd6 {[%clk 0:01:17]}  Rc5 {[%clk 0:00:19]} 36. Rd7+ {[%clk 0:01:17]}  Kf6 {[%clk 0:00:19]} 37. Rxa7 {[%clk 0:01:17]}  h5 {[%clk 0:00:20]} 38. h4 {[%clk 0:01:16]}  Rc6 {[%clk 0:00:18]} 39. Kh2 {[%clk 0:01:16]}  Rd6 {[%clk 0:00:16]} 40. Ra8 {[%clk 0:01:15]}  Kf7 {[%clk 0:00:16]} 41. Ra5 {[%clk 0:01:15]}  Kf6 {[%clk 0:00:16]} 42. Rc5 {[%clk 0:01:15]}  Re6 {[%clk 0:00:16]} 43. Rc8 {[%clk 0:01:14]}  Ra6 {[%clk 0:00:16]} 44. Kg1 {[%clk 0:01:12]}  Ra1+ {[%clk 0:00:15]} 45. Kh2 {[%clk 0:01:13]}  Ra6 {[%clk 0:00:11]} 46. Rd8 {[%clk 0:01:12]} 1/2-1/2


[Site "https://www.chess.com"]

[Event "Titled Tuesday Blitz July 11 Early 2023"]
[White "Kozak, Antoni"]
[Black "Sadykov, Ramil"]
[WhiteFideId "21832030"]
[BlackFideId "24113590"]
[WhiteElo "2785"]
[BlackElo "2605"]
[Result "0-1"]
[Round "5"]
[TimeControl "180+2"]
[Date "2023.07.11"]
[WhiteClock "0:00:12"]
[BlackClock "0:00:06"]
[Board "34"]

1. d4 {[%clk 0:03:00]}  Nf6 {[%clk 0:02:59]} 2. Nf3 {[%clk 0:02:59]}  g6 {[%clk 0:02:57]} 3. Bf4 {[%clk 0:02:58]}  Bg7 {[%clk 0:02:55]} 4. e3 {[%clk 0:02:59]}  O-O {[%clk 0:02:52]} 5. h3 {[%clk 0:02:59]}  d5 {[%clk 0:02:50]} 6. Be2 {[%clk 0:02:53]}  c5 {[%clk 0:02:50]} 7. O-O {[%clk 0:02:52]}  Qb6 {[%clk 0:02:50]} 8. b3 {[%clk 0:02:51]}  Nc6 {[%clk 0:02:50]} 9. c3 {[%clk 0:02:50]}  Ne4 {[%clk 0:02:40]} 10. Nfd2 {[%clk 0:02:21]}  Nxd2 {[%clk 0:02:10]} 11. Nxd2 {[%clk 0:02:20]}  e5 {[%clk 0:02:10]} 12. dxe5 {[%clk 0:02:21]}  Nxe5 {[%clk 0:02:11]} 13. Rc1 {[%clk 0:02:19]}  Be6 {[%clk 0:02:07]} 14. Nf3 {[%clk 0:02:18]}  Nxf3+ {[%clk 0:01:57]} 15. Bxf3 {[%clk 0:02:18]}  Rfd8 {[%clk 0:01:38]} 16. Qc2 {[%clk 0:02:18]}  Rac8 {[%clk 0:01:29]} 17. Rfd1 {[%clk 0:02:16]}  Qa5 {[%clk 0:00:52]} 18. Bg5 {[%clk 0:01:44]}  Rd7 {[%clk 0:00:52]} 19. Bh4 {[%clk 0:01:34]}  h6 {[%clk 0:00:49]} 20. Bg3 {[%clk 0:01:32]}  Rcd8 {[%clk 0:00:47]} 21. Bh4 {[%clk 0:01:28]}  Rc8 {[%clk 0:00:46]} 22. Bg3 {[%clk 0:01:28]}  Rcd8 {[%clk 0:00:47]} 23. Rd2 {[%clk 0:01:26]}  Bf5 {[%clk 0:00:41]} 24. Qb2 {[%clk 0:01:11]}  d4 {[%clk 0:00:34]} 25. cxd4 {[%clk 0:01:01]}  cxd4 {[%clk 0:00:35]} 26. b4 {[%clk 0:00:39]}  Qb6 {[%clk 0:00:22]} 27. e4 {[%clk 0:00:38]}  d3 {[%clk 0:00:16]} 28. Qa3 {[%clk 0:00:20]}  Be6 {[%clk 0:00:17]} 29. Rcd1 {[%clk 0:00:20]}  Bc4 {[%clk 0:00:17]} 30. e5 {[%clk 0:00:17]}  Bf8 {[%clk 0:00:16]} 31. Rb1 {[%clk 0:00:17]}  a5 {[%clk 0:00:15]} 32. Qxa5 {[%clk 0:00:17]}  Qd4 {[%clk 0:00:10]} 33. Qa3 {[%clk 0:00:16]}  b5 {[%clk 0:00:09]} 34. Qb2 {[%clk 0:00:16]}  Qxb2 {[%clk 0:00:07]} 35. Rbxb2 {[%clk 0:00:16]}  Ra7 {[%clk 0:00:08]} 36. Bf4 {[%clk 0:00:15]}  Ra4 {[%clk 0:00:04]} 37. Be4 {[%clk 0:00:12]}  Bxb4 {[%clk 0:00:04]} 38. Rd1 {[%clk 0:00:11]}  Bc3 {[%clk 0:00:04]} 39. Rbb1 {[%clk 0:00:10]}  Bxa2 {[%clk 0:00:05]} 40. Rbc1 {[%clk 0:00:09]}  Rxe4 {[%clk 0:00:02]} 41. Rxc3 {[%clk 0:00:08]}  Rxf4 {[%clk 0:00:03]} 42. Rd2 {[%clk 0:00:08]}  Bc4 {[%clk 0:00:03]} 43. Ra3 {[%clk 0:00:09]}  Re4 {[%clk 0:00:03]} 44. e6 {[%clk 0:00:09]}  Rxe6 {[%clk 0:00:03]} 45. Ra7 {[%clk 0:00:10]}  Red6 {[%clk 0:00:04]} 46. g3 {[%clk 0:00:11]}  Rd4 {[%clk 0:00:04]} 47. h4 {[%clk 0:00:11]}  Kg7 {[%clk 0:00:05]} 48. Rb7 {[%clk 0:00:12]}  h5 {[%clk 0:00:05]} 49. f4 {[%clk 0:00:13]}  R4d7 {[%clk 0:00:05]} 50. Kf2 {[%clk 0:00:12]}  Rxb7 {[%clk 0:00:06]} 0-1


[Site "https://www.chess.com"]

[Event "Titled Tuesday Blitz July 11 Early 2023"]
[White "Lana Rodriguez, David"]
[Black "Goltsev, Dmitry"]
[WhiteFideId "2270803"]
[BlackFideId "24176710"]
[WhiteElo "2601"]
[BlackElo "2773"]
[Result "0-1"]
[Round "5"]
[TimeControl "180+2"]
[Date "2023.07.11"]
[WhiteClock "0:00:20"]
[BlackClock "0:00:05"]
[Board "35"]

1. e4 {[%clk 0:03:00]}  e6 {[%clk 0:02:56]} 2. Nf3 {[%clk 0:02:56]}  d5 {[%clk 0:02:56]} 3. e5 {[%clk 0:02:56]}  c5 {[%clk 0:02:56]} 4. b4 {[%clk 0:02:57]}  cxb4 {[%clk 0:02:55]} 5. d4 {[%clk 0:02:57]}  Nc6 {[%clk 0:02:55]} 6. a3 {[%clk 0:02:57]}  Nge7 {[%clk 0:02:48]} 7. axb4 {[%clk 0:02:57]}  Nxb4 {[%clk 0:02:49]} 8. Ba3 {[%clk 0:02:52]}  Nf5 {[%clk 0:02:48]} 9. c3 {[%clk 0:02:52]}  Nc6 {[%clk 0:02:46]} 10. Bd3 {[%clk 0:02:53]}  Nh4 {[%clk 0:02:39]} 11. O-O {[%clk 0:02:49]}  Nxf3+ {[%clk 0:02:32]} 12. Qxf3 {[%clk 0:02:50]}  a6 {[%clk 0:02:31]} 13. Nd2 {[%clk 0:02:44]}  Bxa3 {[%clk 0:02:30]} 14. Rxa3 {[%clk 0:02:44]}  Qg5 {[%clk 0:02:23]} 15. Qe2 {[%clk 0:02:39]}  f5 {[%clk 0:02:10]} 16. f4 {[%clk 0:02:15]}  Qe7 {[%clk 0:02:09]} 17. Ra2 {[%clk 0:02:13]}  O-O {[%clk 0:02:05]} 18. Nb3 {[%clk 0:02:12]}  Nd8 {[%clk 0:01:50]} 19. Rb1 {[%clk 0:02:04]}  Qc7 {[%clk 0:01:45]} 20. Nc5 {[%clk 0:02:03]}  b6 {[%clk 0:01:45]} 21. Na4 {[%clk 0:02:01]}  b5 {[%clk 0:01:30]} 22. Nc5 {[%clk 0:02:00]}  Nb7 {[%clk 0:01:30]} 23. Nb3 {[%clk 0:01:28]}  Bd7 {[%clk 0:01:15]} 24. Qd2 {[%clk 0:01:22]}  a5 {[%clk 0:01:08]} 25. Nc1 {[%clk 0:01:17]}  b4 {[%clk 0:00:51]} 26. cxb4 {[%clk 0:01:16]}  a4 {[%clk 0:00:48]} 27. Ne2 {[%clk 0:01:13]}  Qb6 {[%clk 0:00:44]} 28. b5 {[%clk 0:01:03]}  Rfc8 {[%clk 0:00:33]} 29. Qb4 {[%clk 0:01:03]}  Qa5 {[%clk 0:00:12]} 30. Qxa5 {[%clk 0:01:03]}  Rxa5 {[%clk 0:00:12]} 31. Rb4 {[%clk 0:01:02]}  a3 {[%clk 0:00:08]} 32. Rb3 {[%clk 0:01:01]}  Rca8 {[%clk 0:00:08]} 33. Nc3 {[%clk 0:00:59]}  Kf7 {[%clk 0:00:09]} 34. Nb1 {[%clk 0:00:59]}  Ke7 {[%clk 0:00:08]} 35. Rbxa3 {[%clk 0:00:59]}  Rxa3 {[%clk 0:00:08]} 36. Rxa3 {[%clk 0:01:00]}  Rxa3 {[%clk 0:00:08]} 37. Nxa3 {[%clk 0:01:01]}  Kd8 {[%clk 0:00:07]} 38. Kf2 {[%clk 0:01:01]}  Kc7 {[%clk 0:00:08]} 39. Ke3 {[%clk 0:00:59]}  Kb6 {[%clk 0:00:08]} 40. Kd2 {[%clk 0:00:59]}  Ka5 {[%clk 0:00:09]} 41. Kc3 {[%clk 0:01:00]}  Ka4 {[%clk 0:00:09]} 42. Kb2 {[%clk 0:00:59]}  Kb4 {[%clk 0:00:09]} 43. Nc2+ {[%clk 0:00:58]}  Ka4 {[%clk 0:00:09]} 44. Na3 {[%clk 0:00:54]}  Kb4 {[%clk 0:00:08]} 45. Be2 {[%clk 0:00:55]}  Na5 {[%clk 0:00:07]} 46. b6 {[%clk 0:00:53]}  Nb7 {[%clk 0:00:07]} 47. Ba6 {[%clk 0:00:53]}  Na5 {[%clk 0:00:05]} 48. b7 {[%clk 0:00:52]}  Nc6 {[%clk 0:00:06]} 49. Bb5 {[%clk 0:00:51]}  Nb8 {[%clk 0:00:06]} 50. Bxd7 {[%clk 0:00:52]}  Nxd7 {[%clk 0:00:07]} 51. Nc2+ {[%clk 0:00:51]}  Kb5 {[%clk 0:00:06]} 52. Kc3 {[%clk 0:00:51]}  Kb6 {[%clk 0:00:06]} 53. Kb4 {[%clk 0:00:51]}  Kxb7 {[%clk 0:00:06]} 54. Kb5 {[%clk 0:00:52]}  Kc7 {[%clk 0:00:06]} 55. Nb4 {[%clk 0:00:53]}  h6 {[%clk 0:00:04]} 56. Na6+ {[%clk 0:00:53]}  Kd8 {[%clk 0:00:04]} 57. Kc6 {[%clk 0:00:53]}  Ke7 {[%clk 0:00:04]} 58. Nc7 {[%clk 0:00:52]}  Nb8+ {[%clk 0:00:04]} 59. Kc5 {[%clk 0:00:51]}  Nd7+ {[%clk 0:00:05]} 60. Kb5 {[%clk 0:00:51]}  g5 {[%clk 0:00:04]} 61. g3 {[%clk 0:00:50]}  gxf4 {[%clk 0:00:04]} 62. gxf4 {[%clk 0:00:51]}  Nf8 {[%clk 0:00:04]} 63. Kc6 {[%clk 0:00:29]}  Ng6 {[%clk 0:00:04]} 64. Na8 {[%clk 0:00:30]}  Nxf4 {[%clk 0:00:04]} 65. Nb6 {[%clk 0:00:31]}  Ne2 {[%clk 0:00:04]} 66. Nc8+ {[%clk 0:00:31]}  Kd8 {[%clk 0:00:04]} 67. Nb6 {[%clk 0:00:27]}  Nxd4+ {[%clk 0:00:04]} 68. Kd6 {[%clk 0:00:27]}  f4 {[%clk 0:00:05]} 69. Na4 {[%clk 0:00:22]}  f3 {[%clk 0:00:05]} 70. Nc5 {[%clk 0:00:20]}  f2 {[%clk 0:00:05]} 0-1


[Site "https://www.chess.com"]

[Event "Titled Tuesday Blitz July 11 Early 2023"]
[White "Al-Tarboush, Ward"]
[Black "Gorovets, Andrey"]
[WhiteFideId "7601450"]
[BlackFideId "13504037"]
[WhiteElo "2600"]
[BlackElo "2767"]
[Result "0-1"]
[Round "5"]
[TimeControl "180+2"]
[Date "2023.07.11"]
[WhiteClock "0:00:10"]
[BlackClock "0:00:08"]
[Board "36"]

1. d4 {[%clk 0:03:00]}  f5 {[%clk 0:02:59]} 2. g3 {[%clk 0:02:58]}  Nf6 {[%clk 0:02:59]} 3. Bg2 {[%clk 0:02:59]}  e6 {[%clk 0:02:59]} 4. Nf3 {[%clk 0:02:59]}  d5 {[%clk 0:03:00]} 5. O-O {[%clk 0:02:58]}  Bd6 {[%clk 0:03:00]} 6. Ne5 {[%clk 0:02:59]}  c5 {[%clk 0:02:55]} 7. c4 {[%clk 0:02:58]}  cxd4 {[%clk 0:02:53]} 8. Qxd4 {[%clk 0:02:50]}  Nc6 {[%clk 0:02:48]} 9. Nxc6 {[%clk 0:02:49]}  bxc6 {[%clk 0:02:49]} 10. cxd5 {[%clk 0:02:48]}  cxd5 {[%clk 0:02:48]} 11. Nc3 {[%clk 0:02:45]}  Qb6 {[%clk 0:02:27]} 12. Qh4 {[%clk 0:02:28]}  O-O {[%clk 0:02:21]} 13. Bg5 {[%clk 0:02:07]}  Bb7 {[%clk 0:02:18]} 14. Be3 {[%clk 0:02:00]}  Qxb2 {[%clk 0:01:52]} 15. Rab1 {[%clk 0:01:59]}  Qxc3 {[%clk 0:01:53]} 16. Rxb7 {[%clk 0:01:59]}  Qa5 {[%clk 0:01:53]} 17. Bd4 {[%clk 0:01:49]}  e5 {[%clk 0:01:17]} 18. Ba1 {[%clk 0:01:48]}  Rab8 {[%clk 0:00:55]} 19. Rxb8 {[%clk 0:01:45]}  Bxb8 {[%clk 0:00:49]} 20. f4 {[%clk 0:01:42]}  Ng4 {[%clk 0:00:24]} 21. h3 {[%clk 0:01:21]}  Qc5+ {[%clk 0:00:23]} 22. Kh1 {[%clk 0:01:21]}  Ne3 {[%clk 0:00:22]} 23. Rb1 {[%clk 0:01:17]}  Nxg2 {[%clk 0:00:20]} 24. Kxg2 {[%clk 0:01:17]}  Qc2 {[%clk 0:00:16]} 25. Re1 {[%clk 0:01:15]}  Qe4+ {[%clk 0:00:13]} 26. Kg1 {[%clk 0:01:06]}  exf4 {[%clk 0:00:14]} 27. Qg5 {[%clk 0:01:03]}  d4 {[%clk 0:00:14]} 28. gxf4 {[%clk 0:00:56]}  Bxf4 {[%clk 0:00:14]} 29. Qg2 {[%clk 0:00:57]}  Be3+ {[%clk 0:00:14]} 30. Kh1 {[%clk 0:00:57]}  Rc8 {[%clk 0:00:11]} 31. Rf1 {[%clk 0:00:53]}  Rc2 {[%clk 0:00:08]} 32. Rb1 {[%clk 0:00:53]}  Qxg2+ {[%clk 0:00:07]} 33. Kxg2 {[%clk 0:00:53]}  Rxe2+ {[%clk 0:00:07]} 34. Kg3 {[%clk 0:00:52]}  g5 {[%clk 0:00:07]} 35. Rb8+ {[%clk 0:00:46]}  Kf7 {[%clk 0:00:07]} 36. Rb7+ {[%clk 0:00:46]}  Kg6 {[%clk 0:00:07]} 37. Rxa7 {[%clk 0:00:42]}  Rf2 {[%clk 0:00:08]} 38. h4 {[%clk 0:00:33]}  f4+ {[%clk 0:00:07]} 39. Kh3 {[%clk 0:00:32]}  Rf3+ {[%clk 0:00:07]} 40. Kg2 {[%clk 0:00:30]}  g4 {[%clk 0:00:07]} 41. Ra6+ {[%clk 0:00:26]}  Kf5 {[%clk 0:00:08]} 42. Ra5+ {[%clk 0:00:26]}  Ke4 {[%clk 0:00:08]} 43. Rg5 {[%clk 0:00:19]}  Rf2+ {[%clk 0:00:08]} 44. Kh1 {[%clk 0:00:10]}  Kf3 {[%clk 0:00:08]} 0-1


[Site "https://www.chess.com"]